fUSD/lending_fUSD_20260109
["ID","MTS","AMOUNT","RATE_DAILY","PERIOD"]
[401132741,1767955850131,-167.793254,0.00016438,2]
[401132742,1767955850140,-167.793254,0.00016438,2]
[401132743,1767955850150,-167.793254,0.00016438,2]
[401132744,1767955850159,-167.793254,0.00016438,2]
[401132745,1767955850168,-167.793254,0.00016438,2]
[401132746,1767955850178,-167.793254,0.00016438,2]
[401132747,1767955850188,-167.793254,0.00016438,2]
[401132748,1767955850197,-167.793252,0.00016438,2]
[401132749,1767955850206,-151.0,0.00016438,2]
[401132750,1767955850216,-151.0,0.00016438,2]
[401132751,1767955850225,-178.450841,0.00016438,2]
[401132752,1767955850234,-151.0,0.00016438,2]
[401132753,1767955850243,-151.0,0.00016438,2]
[401132754,1767955850252,-151.0,0.00016438,2]
[401132755,1767955850262,-151.0,0.00016438,2]
[401132756,1767955850276,-151.0,0.00016438,2]
[401132757,1767955850285,-151.0,0.00016438,2]
[401132758,1767955850295,-151.0,0.00016438,2]
[401132759,1767955850304,-151.0,0.00016438,2]
[401132760,1767955850313,-151.0,0.00016438,2]
[401132761,1767955850323,-151.0,0.00016438,2]
[401132762,1767955850332,-151.0,0.00016438,2]
[401132763,1767955850342,-288.652637,0.00016438,2]
[401132764,1767955850351,-151.0,0.00016438,2]
[401132765,1767955850361,-154.549573,0.00016438,2]
[401132766,1767955850371,-151.0,0.00016438,2]
[401132767,1767955850380,-156.25568,0.00016438,2]
[401132768,1767955850390,-339.512612,0.00016438,2]
[401132769,1767955850399,-339.512612,0.00016438,2]
[401132770,1767955850412,-339.512612,0.00016438,2]
[401132771,1767955850421,-339.512612,0.00016438,2]
[401132772,1767955850430,-339.512612,0.00016438,2]
[401132773,1767955850439,-339.512612,0.00016438,2]
[401132774,1767955850449,-339.512612,0.00016438,2]
[401132775,1767955850459,-339.512612,0.00016438,2]
[401132776,1767955850468,-339.512612,0.00016438,2]
[401132777,1767955850478,-339.512612,0.00016438,2]
[401132778,1767955850487,-339.512612,0.00016438,2]
[401132779,1767955850497,-339.512612,0.00016438,2]
[401132780,1767955850507,-339.512612,0.00016438,2]
[401132781,1767955850516,-339.512612,0.00016438,2]
[401132782,1767955850525,-339.512612,0.00016438,2]
[401132783,1767955850537,-339.512612,0.00016438,2]
[401132784,1767955850546,-339.512612,0.00016438,2]
[401132785,1767955850555,-339.512612,0.00016438,2]
[401132786,1767955850565,-339.512612,0.00016438,2]
[401132787,1767955850574,-151.0,0.00016438,2]
[401132788,1767955850584,-339.512607,0.00016438,2]
[401132789,1767955850594,-151.0,0.00016438,2]
[401132790,1767955850603,-151.0,0.00016438,2]
[401132791,1767955850612,-151.0,0.00016438,2]
[401132792,1767955850621,-151.0,0.00016438,2]
[401132793,1767955850630,-151.0,0.00016438,2]
[401132794,1767955850639,-151.0,0.00016438,2]
[401132795,1767955850650,-151.0,0.00016438,2]
[401132796,1767955850664,-151.0,0.00016438,2]
[401132797,1767955850673,-273.503167,0.00016438,2]
[401132798,1767955850684,-160.683881,0.00016438,2]
[401132799,1767955850693,-151.0,0.00016438,2]
[401132800,1767955850702,-183.105509,0.00016438,2]
[401132801,1767955850711,-158.793233,0.00016438,2]
[401132802,1767955850720,-158.793233,0.00016438,2]
[401132803,1767955850730,-158.793233,0.00016438,2]
[401132804,1767955850740,-158.793233,0.00016438,2]
[401132805,1767955850749,-158.793233,0.00016438,2]
[401132806,1767955850759,-158.793233,0.00016438,2]
[401132807,1767955850768,-158.793233,0.00016438,2]
[401132808,1767955850779,-158.793233,0.00016438,2]
[401132809,1767955850788,-158.793233,0.00016438,2]
[401132810,1767955850798,-158.793233,0.00016438,2]
[401132811,1767955850810,-158.793233,0.00016438,2]
[401132812,1767955850819,-158.793233,0.00016438,2]
[401132813,1767955850829,-158.793233,0.00016438,2]
[401132814,1767955850839,-158.793233,0.00016438,2]
[401132815,1767955850849,-158.793233,0.00016438,2]
[401132816,1767955850858,-1292.28931,0.00016438,2]
[401132817,1767955850868,-1292.28931,0.00016438,2]
[401132818,1767955850879,-1292.28931,0.00016438,2]
[401132819,1767955850888,-158.793233,0.00016438,2]
[401132820,1767955850898,-1292.28931,0.00016438,2]
[401132821,1767955850907,-158.793233,0.00016438,2]
[401132822,1767955850917,-1292.28931,0.00016438,2]
[401132823,1767955850927,-158.793233,0.00016438,2]
[401132824,1767955850936,-1292.28931,0.00016438,2]
[401132825,1767955850945,-158.793233,0.00016438,2]
[401132826,1767955850956,-1292.28931,0.00016438,2]
[401132827,1767955850966,-158.793235,0.00016438,2]
[401132828,1767955850978,-1292.28931,0.00016438,2]
[401132829,1767955850988,-1292.28931,0.00016438,2]
[401132830,1767955850998,-1292.28931,0.00016438,2]
[401132831,1767955851008,-1292.28931,0.00016438,2]
[401132832,1767955851018,-1292.28931,0.00016438,2]
[401132833,1767955851027,-1292.28931,0.00016438,2]
[401132834,1767955851037,-1292.28931,0.00016438,2]
[401132835,1767955851047,-1292.28931,0.00016438,2]
[401132836,1767955851057,-1292.28931,0.00016438,2]
[401132837,1767955851066,-1292.28931,0.00016438,2]
[401132838,1767955851076,-1292.28931,0.00016438,2]
[401132839,1767955851086,-1106.09060864,0.00016438,2]
[401132840,1767955852166,-165.60214924,0.00015,2]
[401132841,1767955852176,-287.9482593,0.00015,2]
[401132842,1767955852186,-151.0,0.00015451,2]
[401132843,1767955852195,-151.0,0.00015451,2]
[401132844,1767955852206,-186.19870136,0.00016438,2]
[401132845,1767955852216,-1292.289311,0.00016438,2]
[401132846,1767955852225,-274.942124,0.00016438,2]
[401132847,1767955852235,-274.942124,0.00016438,2]
[401132848,1767955852245,-151.0,0.00016438,2]
[401132849,1767955852255,-274.942124,0.00016438,2]
[401132850,1767955852265,-151.0,0.00016438,2]
[401132851,1767955852274,-274.942124,0.00016438,2]
[401132852,1767955852284,-151.0,0.00016438,2]
[401132853,1767955852294,-274.942124,0.00016438,2]
[401132854,1767955852303,-214.737811,0.00016438,2]
[401132855,1767955852312,-274.942124,0.00016438,2]
[401132856,1767955852322,-274.942124,0.00016438,2]
[401132857,1767955852331,-274.942124,0.00016438,2]
[401132858,1767955852341,-274.942124,0.00016438,2]
[401132859,1767955852351,-151.86029165,0.00016438,2]
[401132860,1767955852369,-123.08183235,0.00016438,2]
[401132861,1767955852378,-274.942124,0.00016438,2]
[401132862,1767955852388,-274.942124,0.00016438,2]
[401132863,1767955852398,-274.942124,0.00016438,2]
[401132864,1767955852407,-274.942124,0.00016438,2]
[401132865,1767955852418,-274.942124,0.00016438,2]
[401132866,1767955852428,-274.942124,0.00016438,2]
[401132867,1767955852437,-274.942124,0.00016438,2]
[401132868,1767955852448,-274.942124,0.00016438,2]
[401132869,1767955852458,-274.942124,0.00016438,2]
[401132870,1767955852467,-274.942117,0.00016438,2]
[401132871,1767955852477,-209.787824,0.00016438,2]
[401132872,1767955852486,-354.186469,0.00016438,2]
[401132873,1767955852495,-151.0,0.00016438,2]
[401132874,1767955852504,-354.186469,0.00016438,2]
[401132875,1767955852513,-151.0,0.00016438,2]
[401132876,1767955852522,-354.186469,0.00016438,2]
[401132877,1767955852532,-151.0,0.00016438,2]
[401132878,1767955852541,-151.0,0.00016438,2]
[401132879,1767955852550,-354.186469,0.00016438,2]
[401132880,1767955852561,-151.0,0.00016438,2]
[401132881,1767955852570,-354.186469,0.00016438,2]
[401132882,1767955852579,-151.0,0.00016438,2]
[401132883,1767955852589,-354.186469,0.00016438,2]
[401132884,1767955852598,-151.0,0.00016438,2]
[401132885,1767955852608,-354.186469,0.00016438,2]
[401132886,1767955852617,-151.0,0.00016438,2]
[401132887,1767955852628,-354.186469,0.00016438,2]
[401132888,1767955852637,-151.0,0.00016438,2]
[401132889,1767955852647,-354.186469,0.00016438,2]
[401132890,1767955852657,-151.0,0.00016438,2]
[401132891,1767955852666,-354.186469,0.00016438,2]
[401132892,1767955852675,-151.0,0.00016438,2]
[401132893,1767955852684,-354.186469,0.00016438,2]
[401132894,1767955852694,-151.0,0.00016438,2]
[401132895,1767955852704,-151.0,0.00016438,2]
[401132896,1767955852714,-526.370419,0.00016438,2]
[401132897,1767955852724,-151.0,0.00016438,2]
[401132898,1767955852732,-354.186469,0.00016438,2]
[401132899,1767955852741,-151.0,0.00016438,2]
[401132900,1767955852750,-151.0,0.00016438,2]
[401132901,1767955852759,-526.370419,0.00016438,2]
[401132902,1767955852769,-151.0,0.00016438,2]
[401132903,1767955852780,-354.186469,0.00016438,2]
[401132904,1767955852790,-151.0,0.00016438,2]
[401132905,1767955852800,-194.215629,0.00016438,2]
[401132906,1767955852812,-354.186469,0.00016438,2]
[401132907,1767955852821,-526.370419,0.00016438,2]
[401132908,1767955852830,-151.0,0.00016438,2]
[401132909,1767955852840,-151.0,0.00016438,2]
[401132910,1767955852850,-151.0,0.00016438,2]
[401132911,1767955852859,-354.186469,0.00016438,2]
[401132912,1767955852868,-526.370419,0.00016438,2]
[401132913,1767955852880,-151.0,0.00016438,2]
[401132914,1767955852889,-151.0,0.00016438,2]
[401132915,1767955852898,-151.0,0.00016438,2]
[401132916,1767955852907,-526.370419,0.00016438,2]
[401132917,1767955852916,-354.186469,0.00016438,2]
[401132918,1767955852926,-151.0,0.00016438,2]
[401132919,1767955852935,-151.0,0.00016438,2]
[401132920,1767955852944,-526.370419,0.00016438,2]
[401132921,1767955852953,-151.0,0.00016438,2]
[401132922,1767955852962,-354.186469,0.00016438,2]
[401132923,1767955852972,-151.0,0.00016438,2]
[401132924,1767955852981,-526.370419,0.00016438,2]
[401132925,1767955852991,-151.0,0.00016438,2]
[401132926,1767955853001,-354.186469,0.00016438,2]
[401132927,1767955853011,-151.0,0.00016438,2]
[401132928,1767955853021,-180.850923,0.00016438,2]
[401132929,1767955853031,-526.370419,0.00016438,2]
[401132930,1767955853041,-354.186469,0.00016438,2]
[401132931,1767955853051,-151.0,0.00016438,2]
[401132932,1767955853061,-151.0,0.00016438,2]
[401132933,1767955853072,-354.18647,0.00016438,2]
[401132934,1767955853082,-151.0,0.00016438,2]
[401132935,1767955853092,-526.370419,0.00016438,2]
[401132936,1767955853104,-151.0,0.00016438,2]
[401132937,1767955853114,-151.0,0.00016438,2]
[401132938,1767955853123,-526.370419,0.00016438,2]
[401132939,1767955853133,-241.768576,0.00016438,2]
[401132940,1767955853143,-151.0,0.00016438,2]
[401132941,1767955853153,-526.370419,0.00016438,2]
[401132942,1767955853163,-456.940757,0.00016438,2]
[401132943,1767955853173,-151.0,0.00016438,2]
[401132944,1767955853182,-526.370419,0.00016438,2]
[401132945,1767955853192,-151.0,0.00016438,2]
[401132946,1767955853201,-526.370419,0.00016438,2]
[401132947,1767955853210,-526.370419,0.00016438,2]
[401132948,1767955853220,-151.0,0.00016438,2]
[401132949,1767955853229,-526.370419,0.00016438,2]
[401132950,1767955853239,-151.0,0.00016438,2]
[401132951,1767955853250,-526.370419,0.00016438,2]
[401132952,1767955853259,-182.583458,0.00016438,2]
[401132953,1767955853269,-526.370419,0.00016438,2]
[401132954,1767955853279,-526.370419,0.00016438,2]
[401132955,1767955853288,-526.370419,0.00016438,2]
[401132956,1767955853298,-526.370427,0.00016438,2]
[401132957,1767955853307,-151.0,0.00016438,2]
[401132958,1767955853316,-151.0,0.00016438,2]
[401132959,1767955853326,-82.19088817,0.00016438,2]
[401132965,1767956804726,4765.1,0.000202,30]
[401132968,1767957031544,-150.0,0.00012791,2]
[401132969,1767957031553,-300.0,0.00012791,2]
[401132970,1767957031562,-1200.0,0.00012791,2]
[401132971,1767957031571,-151.0,0.00012792,2]
[401132972,1767957031581,-151.0,0.00012792,2]
[401132973,1767957031591,-151.0,0.00012792,2]
[401132974,1767957031601,-151.0,0.00012792,2]
[401132975,1767957031610,-151.0,0.00012792,2]
[401132976,1767957031619,-3.33539301,0.00012792,2]
[401132977,1767957031630,-147.66460699,0.00012792,2]
[401132978,1767957031639,-151.0,0.00012792,2]
[401132979,1767957031649,-151.0,0.00012792,2]
[401132980,1767957031660,-151.0,0.00012792,2]
[401132981,1767957031670,-151.0,0.00012792,2]
[401132982,1767957031680,-151.0,0.00012792,2]
[401132983,1767957031690,-151.0,0.00012792,2]
[401132984,1767957031699,-151.0,0.00012792,2]
[401132985,1767957031709,-151.0,0.00012792,2]
[401132986,1767957031720,-151.0,0.00012792,2]
[401132987,1767957031730,-151.0,0.00012792,2]
[401132988,1767957031739,-151.0,0.00012792,2]
[401132989,1767957031750,-151.0,0.00012792,2]
[401132990,1767957031759,-151.0,0.00012792,2]
[401132991,1767957031768,-151.0,0.00012792,2]
[401132992,1767957031777,-151.0,0.00012792,2]
[401132993,1767957031786,-151.0,0.00012792,2]
[401132994,1767957031795,-160.89416707,0.00012792,2]
[401132995,1767957031805,-151.0,0.00012792,2]
[401132996,1767957031814,-151.0,0.00012792,2]
[401132997,1767957031823,-151.0,0.00012792,2]
[401132998,1767957031832,-151.0,0.00012792,2]
[401132999,1767957031841,-61205.8144038,0.000128,2]
[401133000,1767957031873,-546.51182598,0.000128,2]
[401133001,1767957031888,-431.67346962,0.000128,2]
[401133003,1767957031900,-4595.08982046,0.000128,2]
[401133006,1767957031918,-485.01153519,0.000128,2]
[401133024,1767957037705,-918.78,0.000128,2]
[401133025,1767957037864,-24239.46311783,0.000128,2]
[401133064,1767957039802,-845.65143315,0.000128,2]
[401133123,1767957044095,-71363.77801579,0.000128,2]
[401133125,1767957044108,-6966.03381278,0.000128,2]
[401133127,1767957044117,-1100.0,0.000128,2]
[401133128,1767957044126,-1100.0,0.00013474,2]
[401133129,1767957044136,-1000.0,0.00013668,2]
[401133130,1767957044145,-420.0,0.00014031,2]
[401133131,1767957044154,-1680.0,0.0001407,2]
[401133132,1767957044165,-1100.0,0.00014183,2]
[401133133,1767957044175,-620.0,0.00014377,2]
[401133134,1767957044184,-322.6107,0.00014377,2]
[401133135,1767957044194,-542.8884043,0.00014377,2]
[401133136,1767957044204,-553.64373807,0.00014377,2]
[401133137,1767957044213,-1771.03382657,0.00014377,2]
[401133138,1767957044223,-500.0,0.00014477,2]
[401133139,1767957044232,-2326.32,0.00014541,2]
[401133140,1767957044242,-1000.0,0.00014633,2]
[401133141,1767957044252,-396.81,0.00014651,2]
[401133142,1767957044261,-574.12855637,0.00014925,2]
[401133143,1767957044271,-1100.0,0.00014929,2]
[401133144,1767957044280,-166.66,0.00015064,2]
[401133145,1767957044290,-1852.42,0.00015106,2]
[401133146,1767957044299,-151.0,0.00015269,2]
[401133147,1767957044308,-151.0,0.00015269,2]
[401133148,1767957044319,-151.0,0.00015276,2]
[401133149,1767957044331,-151.0,0.00015276,2]
[401133150,1767957044340,-151.0,0.00015282,2]
[401133151,1767957044350,-151.0,0.00015282,2]
[401133152,1767957044360,-587.0,0.0001539,2]
[401133153,1767957044371,-595.37131296,0.00015473,2]
[401133154,1767957044381,-2351.0,0.00015477,2]
[401133155,1767957044390,-166.66,0.00015561,2]
[401133156,1767957044399,-200.0,0.00015642,2]
[401133157,1767957044408,-151.0,0.0001569,2]
[401133158,1767957044418,-151.0,0.0001569,2]
[401133159,1767957044428,-1100.0,0.00015715,2]
[401133160,1767957044438,-642.94,0.00015746,2]
[401133161,1767957044447,-334.5472959,0.00015746,2]
[401133162,1767957044456,-1000.0,0.00015918,2]
[401133163,1767957044466,-2165.0,0.00015993,2]
[401133164,1767957044475,-1000.0,0.00016,2]
[401133165,1767957044485,-1111.94901075,0.00016,2]
[401133166,1767957044494,-617.40005154,0.00016021,2]
[401133167,1767957044504,-166.66,0.00016059,2]
[401133168,1767957044513,-2165.0,0.00016123,2]
[401133169,1767957044522,-2165.0,0.00016137,2]
[401133170,1767957044531,-1000.0,0.000162,2]
[401133171,1767957044540,-201.7245,0.00016207,2]
[401133172,1767957044550,-11052.6096,0.00016238,2]
[401133173,1767957044559,-153.55065544,0.00016296,2]
[401133174,1767957044570,-1058.11189809,0.00016296,2]
[401133175,1767957044579,-200.0,0.00016306,2]
[401133176,1767957044589,-1326.67020039,0.00016307,2]
[401133187,1767957046049,-673.32979961,0.00016307,2]
[401133188,1767957046061,-200.0,0.00016307,2]
[401133189,1767957046071,-101.13144981,0.00016307,2]
[401133193,1767958010107,-176.35,0.00015096,2]
[401133194,1767958010129,-11.18678964,0.00015137,2]
[401133195,1767958010359,2637.88237455,0.00015,14]
[401133228,1767958184621,145962.70648009,0.000202,30]
[401133239,1767958231806,-166.66,0.00014297,2]
[401133240,1767958231816,-166.66,0.00014598,2]
[401133241,1767958231825,-166.66,0.00014899,2]
[401133242,1767958231834,-610.53759736,0.00014914,3]
[401133243,1767958231915,-371.3259998,0.00014914,3]
[401133244,1767958231969,-17.13640284,0.00014914,3]
[401133245,1767958231979,-617.03321036,0.00015137,2]
[401133246,1767958231988,-166.66,0.000152,2]
[401133247,1767958231999,-508.08,0.00015241,2]
[401133248,1767958232009,-150.0,0.00015319,2]
[401133249,1767958232019,-312.47,0.00015371,2]
[401133250,1767958232028,-620.0,0.00015439,2]
[401133251,1767958232038,-322.6107,0.00015439,2]
[401133252,1767958232047,-553.64373807,0.00015439,2]
[401133253,1767958232057,-1200.0,0.00015447,2]
[401133255,1767958232066,-13671.13,0.00015449,2]
[401133257,1767958232075,-3047.750662,0.00015488,2]
[401133258,1767958232084,-165.213,0.00015492,2]
[401133259,1767958232094,-1968.203,0.00015492,2]
[401133260,1767958232103,-3240.0,0.00015492,2]
[401133261,1767958232112,-166.66,0.00015501,2]
[401133263,1767958232121,-11531.4029677,0.00015571,2]
[401133265,1767958232130,-5752.78781903,0.00015637,2]
[401133267,1767958232141,-405.05,0.00015637,2]
[401133269,1767958232153,-632.07082497,0.00015637,2]
[401133271,1767958232162,-1095.33279862,0.00015654,2]
[401133282,1767958232254,-4412.20720138,0.00015654,2]
[401133284,1767958232263,-166.66,0.00015802,2]
[401133286,1767958232273,-1365.0,0.000159,2]
[401133288,1767958232283,-176.35,0.00015934,2]
[401133290,1767958232292,-2249.62948007,0.00015978,2]
[401133291,1767958232736,-459.37051993,0.00015978,2]
[401133292,1767958232747,-295.2958082,0.00015987,2]
[401133293,1767958232759,-278.83274817,0.00015987,2]
[401133294,1767958232768,-508.08,0.00016003,2]
[401133295,1767958232778,-145.40630305,0.00016102,2]
[401133367,1767958238906,-1355.23984126,0.00016102,2]
[401133369,1767958238922,-1208.35385569,0.00016102,2]
[401133371,1767958238932,-150.0,0.000162,2]
[401133373,1767958238942,-5000.00643915,0.000162,5]
[401133375,1767958238952,-2230.39920212,0.000162,2]
[401133378,1767958238971,-269.60079788,0.000162,2]
[401133380,1767958238980,-299.34697662,0.00016207,2]
[401133382,1767958238990,-952.30070829,0.00016207,2]
[401133385,1767958239000,-1631.45150221,0.0001623,2]
[401133873,1767958243607,-151.0,0.00016128,2]
[401133874,1767958243617,-151.0,0.00016128,2]
[401133875,1767958243626,-192.80188664,0.00016207,2]
[401133876,1767958243636,-151.59811336,0.0001623,2]
[401133877,1767958244426,-619.5,0.0001623,2]
[401133878,1767958244461,-306.45038443,0.0001623,2]
[401133879,1767958244472,-319.98713186,0.00016299,2]
[401133880,1767958244482,-178.60325293,0.00016299,2]
[401133881,1767958244491,-6581.0,0.000163,2]
[401133882,1767958244501,-150.0,0.000163,2]
[401133883,1767958244510,-511756.76754621,0.000163,2]
[401133884,1767958245803,-1159.95,0.000163,2]
[401133885,1767958245970,-900.70565478,0.000163,2]
[401133961,1767958574866,6491.38285768,0.000202,30]
[401133982,1767959432375,-200.0,0.00015303,2]
[401133983,1767959432386,-553.54269787,0.00015332,2]
[401133984,1767959432443,-1298.87730213,0.00015332,2]
[401133985,1767959432459,-685.56,0.00015406,2]
[401133986,1767959432471,-200.0,0.00015713,2]
[401133987,1767959432483,-166.67,0.00015735,2]
[401133988,1767959432494,-1000.0,0.00015918,2]
[401133989,1767959432506,-151.0,0.00015957,2]
[401133990,1767959432518,-151.0,0.00015957,2]
[401133991,1767959432530,-151.0,0.00015958,2]
[401133992,1767959432542,-151.0,0.00015958,2]
[401133993,1767959432554,-200.0,0.00016029,2]
[401133994,1767959432566,-1200.0,0.00016097,2]
[401133995,1767959432578,-322.6107,0.00016099,2]
[401133996,1767959432589,-1400.0,0.00016099,2]
[401133997,1767959432602,-8260.13072239,0.00016099,2]
[401133998,1767959432614,-1000.0,0.000161,2]
[401133999,1767959432627,-2500.0,0.000161,2]
[401134000,1767959432638,-1886.73487497,0.000161,2]
[401134001,1767959432649,-195.83269162,0.00016107,2]
[401134002,1767959432661,-3903.87629394,0.00016109,2]
[401134003,1767959432673,-1443.5302888,0.00016128,2]
[401134004,1767959432685,-500.0,0.0001619,2]
[401134005,1767959432699,-500.0,0.0001619,2]
[401134006,1767959432710,-500.0,0.0001619,2]
[401134007,1767959432722,-250.0,0.0001619,2]
[401134008,1767959432734,-250.0,0.0001619,2]
[401134009,1767959432747,-500.0,0.0001619,2]
[401134010,1767959432760,-250.0,0.0001619,2]
[401134011,1767959432775,-418.83219715,0.0001619,2]
[401134012,1767959432788,-553.64373807,0.0001619,2]
[401134013,1767959432800,-639.07285647,0.0001619,2]
[401134014,1767959432812,-151.0,0.0001619,2]
[401134015,1767959432825,-170.05589298,0.0001619,2]
[401134016,1767959432838,-250.0,0.0001619,2]
[401134017,1767959432850,-223.9909923,0.00016199,2]
[401134018,1767959432863,-165.213,0.00016199,2]
[401134019,1767959432875,-1574.562,0.00016199,2]
[401134020,1767959432888,-150.0,0.000162,2]
[401134021,1767959432901,-42011.40359751,0.000162,2]
[401134022,1767959432966,-1027.11678612,0.000162,2]
[401134023,1767959432977,-3753.07156661,0.000162,2]
[401134024,1767959432991,-7477.9414305,0.000162,2]
[401134025,1767959433005,-1487.95536,0.000162,2]
[401134026,1767959433017,-5879.39187,0.000162,2]
[401134027,1767959433030,-510.0,0.000162,2]
[401134028,1767959433042,-1650.0,0.000162,2]
[401134029,1767959438042,-432.83273769,0.00016009,2]
[401134030,1767959438054,-27815.92426398,0.00016009,2]
[401134031,1767959438218,-14547.31490337,0.00016009,2]
[401134222,1767959440339,-18249.37087493,0.00016009,2]
[401134225,1767959440359,-366.77809616,0.00016009,2]
[401134227,1767959440370,-8296.85959328,0.00016009,2]
[401134665,1767959444592,-1613.6,0.00016009,2]
[401134737,1767959445348,-1200.0,0.00016009,2]
[401134833,1767959446366,-531.51952131,0.00016009,2]
[401134837,1767959446401,-22416.27630679,0.00016009,2]
[401134839,1767959446414,-814.90723706,0.00016009,2]
[401135110,1767960002204,159.05,7.735e-05,2]
[401135117,1767960078493,152.29790571,7e-05,2]
[401135165,1767960632276,-317.44,0.00014908,2]
[401135166,1767960632286,-121.87811681,0.0001494,2]
[401135210,1767960632939,3171.29048076,0.0001,2]
[401135213,1767960638282,-878.12188319,0.0001494,2]
[401135214,1767960638293,-1200.0,0.00014951,2]
[401135215,1767960638303,-1639.51106436,0.00014952,2]
[401135527,1767960644880,-58.55032314,0.00014952,2]
[401135528,1767960644891,-218.49695668,0.00014952,2]
[401135529,1767960644903,-17.892158,0.00014952,2]
[401135530,1767960644912,-236.38911468,0.00014952,2]
[401135531,1767960644921,-22.66714808,0.00014977,2]
[401135532,1767960644932,-134.12654653,0.00014977,2]
[401135533,1767960644941,-182.53205307,0.00014978,2]
[401135537,1767960646178,-388.41240471,0.00014978,2]
[401135540,1767960646609,-451.03499985,0.00014978,2]
[401135541,1767960646645,-2222.05461712,0.00014978,2]
[401135542,1767960646725,-2022.96592525,0.00014978,2]
[401135543,1767960646735,-7912.81426595,0.00014978,2]
[401135544,1767960646746,-6260.75309609,0.00014978,2]
[401135545,1767960646778,-3462.23077405,0.00014978,2]
[401135547,1767961350332,2000.0,0.00013352,30]
[401135550,1767961600126,-187.53769726,0.00013352,2]
[401135551,1767961651265,2038.59914541,0.0001969,30]
[401135554,1767961799007,40315.0,0.000226,120]
[401135567,1767961837548,-1072.11230274,0.00013352,2]
[401135568,1767961837558,-1200.0,0.00013424,2]
[401135569,1767961837568,-300.0,0.00013424,2]
[401135570,1767961837578,-641.14767418,0.00013425,2]
[401135571,1767961837591,-585.29862582,0.00013425,2]
[401135572,1767961837600,-1152.09348103,0.00013425,2]
[401135573,1767961837612,-147.08377889,0.00013425,2]
[401135574,1767961837621,-545.65828052,0.00013425,2]
[401135575,1767961837726,-881.42399107,0.00013425,2]
[401135576,1767961837736,-637.70964098,0.00013425,2]
[401135577,1767961837779,-459.33317161,0.00013425,2]
[401135743,1767961839597,-655.28295906,0.00013425,2]
[401135760,1767961839754,-902.0,0.00013425,2]
[401135765,1767961839788,-672.02093807,0.00013425,2]
[401135767,1767961839800,-1000000.0,0.00013525,2]
[401135769,1767961839811,-572.63861532,0.00013525,2]
[401135771,1767961839823,-165.10890615,0.00013615,2]
[401135773,1767961839834,-161749.87729344,0.00013625,2]
[401135791,1767961839996,-1553.73338953,0.00013625,2]
[401135793,1767961840010,-419.77238971,0.00013625,2]
[401135841,1767961843160,-1016.65390737,0.00013625,2]
[401135842,1767961844013,-2149.78830323,0.00013625,2]
[401135843,1767961844108,-286208.22555177,0.00013625,2]
[401135849,1767961846902,-262.9,0.00013625,2]
[401135850,1767961846916,-3531.57347963,0.00013625,2]
[401135851,1767961846952,-1352.0,0.00013625,2]
[401135852,1767961846964,-7739.98399239,0.00013625,2]
[401135853,1767961846976,-630.21210057,0.00013625,2]
[401135854,1767961847053,-269.99999995,0.00013625,2]
[401135871,1767962330393,500.0,0.00012871,3]
[401135872,1767962651350,152.0,0.00020111,30]
[401135873,1767962736757,7000.0,0.00012518,30]
[401135874,1767962818101,-332.00133391,0.0001265,2]
[401135878,1767963032075,-250.0,0.00012374,2]
[401135879,1767963032084,-86.22313328,0.00012398,2]
[401135880,1767963032149,-163.77686672,0.00012398,2]
[401135881,1767963032158,-294.67060657,0.00012423,2]
[401135882,1767963032169,-5.32939343,0.00012423,2]
[401135883,1767963032178,-645.08360657,0.00012472,2]